{"text_format":"3","workbook":"xlsx","n_sheets":1,"sheets":["Osobní měsíční rozpočet"],"read":"whole","date_system":"1900"}

{"sheet":"Osobní měsíční rozpočet","index":0,"n_rows":62,"n_cols":10,"rows_kept":62,"merged":[[0,1,0,9],[2,1,4,1],[2,2,2,3],[2,7,2,8],[3,2,3,3],[3,7,3,8],[4,2,4,3],[4,6,4,8],[5,1,7,1],[5,2,5,3],[5,7,5,8],[6,2,6,3],[6,7,6,8],[7,2,7,3],[7,6,7,8],[20,6,20,9],[21,1,21,4],[29,6,29,9],[31,1,31,4],[36,6,36,9],[38,1,38,4],[42,6,42,9],[44,1,44,4],[48,6,48,9],[52,1,52,4],[55,6,55,9]]}
[null,"Osobní měsíční rozpočet"]
[]
[null,"PŘEDPOKLÁDANÉ MĚSÍČNÍ PŘÍJMY","Příjem 1",null,{"v":2500,"d":"2,500 Kč"},null,"PŘEDPOKLÁDANÉ VÝDAJE CELKEM ","(předpokládané příjmy minus výdaje)",null,{"$f":"SUM(C21,C31,C38,C44,C52,C62,H20,H29,H36,H42,H48,H55)","v":{"v":2060,"d":"2,060 Kč"}}]
[null,null,"Jiné příjmy",null,{"v":500,"d":"500 Kč"},null,"CELKOVÉ SKUTEČNÉ VÝDAJE ","(skutečné příjmy minus výdaje)",null,{"$f":"SUM(D21,D31,D38,D44,D52,D62,I20,I29,I36,I42,I48,I55)","v":{"v":2040,"d":"2,040 Kč"}}]
[null,null,"Celkové měsíční příjmy",null,{"$f":"SUM(E3:E4)","v":{"v":3000,"d":"3,000 Kč"}},null,"Celkový rozdíl ve výdajích",null,null,{"$f":"SUM(E21,E31,E38,E44,E52,E62,J20,J29,J36,J42,J48,J55)","v":{"v":20,"d":"20 Kč"}}]
[null,"SKUTEČNÉ MĚSÍČNÍ PŘÍJMY","Příjem 1",null,{"v":2500,"d":"2,500 Kč"},null,"PŘEDPOKLÁDANÝ ZŮSTATEK","(předpokládané příjmy minus výdaje)",null,{"$f":"E5-J3","v":{"v":940,"d":"940 Kč"}}]
[null,null,"Jiné příjmy",null,{"v":500,"d":"500 Kč"},null,"SKUTEČNÝ ZŮSTATEK","(skutečné příjmy minus výdaje)",null,{"$f":"E8-J4","v":{"v":960,"d":"960 Kč"}}]
[null,null,"Celkové měsíční příjmy",null,{"$f":"SUM(E6:E7)","v":{"v":3000,"d":"3,000 Kč"}},null,"ZŮSTATEK – ROZDÍL (skutečnost minus předpoklad)",null,null,{"$f":"J7-J6","v":{"v":20,"d":"20 Kč"}}]
[]
[null,"BYDLENÍ","Předpokládané náklady","Skutečné náklady","Rozdíl",null,"ZÁBAVA","Předpokládané náklady","Skutečné náklady","Rozdíl"]
[null,"Hypotéka nebo nájemné",{"v":1500,"d":"1,500 Kč"},{"v":1400,"d":"1,400 Kč"},{"$f":"Bydlení[[#This Row],[Předpokládané náklady]]-Bydlení[[#This Row],[Skutečné náklady]]","v":{"v":100,"d":"100 Kč"}},null,"Video/DVD",{"v":0,"d":"0 Kč"},{"v":50,"d":"50 Kč"},{"$f":"Zábava[[#This Row],[Předpokládané náklady]]-Zábava[[#This Row],[Skutečné náklady]]","v":{"v":-50,"d":"-50 Kč"}}]
[null,"Telefon",{"v":60,"d":"60 Kč"},{"v":100,"d":"100 Kč"},{"$f":"Bydlení[[#This Row],[Předpokládané náklady]]-Bydlení[[#This Row],[Skutečné náklady]]","v":{"v":-40,"d":"-40 Kč"}},null,"CD",null,null,{"$f":"Zábava[[#This Row],[Předpokládané náklady]]-Zábava[[#This Row],[Skutečné náklady]]","v":{"v":0,"d":"0 Kč"}}]
[null,"Elektřina",{"v":50,"d":"50 Kč"},{"v":60,"d":"60 Kč"},{"$f":"Bydlení[[#This Row],[Předpokládané náklady]]-Bydlení[[#This Row],[Skutečné náklady]]","v":{"v":-10,"d":"-10 Kč"}},null,"Filmy",null,null,{"$f":"Zábava[[#This Row],[Předpokládané náklady]]-Zábava[[#This Row],[Skutečné náklady]]","v":{"v":0,"d":"0 Kč"}}]
[null,"Plyn",{"v":200,"d":"200 Kč"},{"v":180,"d":"180 Kč"},{"$f":"Bydlení[[#This Row],[Předpokládané náklady]]-Bydlení[[#This Row],[Skutečné náklady]]","v":{"v":20,"d":"20 Kč"}},null,"Koncerty",null,null,{"$f":"Zábava[[#This Row],[Předpokládané náklady]]-Zábava[[#This Row],[Skutečné náklady]]","v":{"v":0,"d":"0 Kč"}}]
[null,"Vodné a stočné",null,null,{"$f":"Bydlení[[#This Row],[Předpokládané náklady]]-Bydlení[[#This Row],[Skutečné náklady]]","v":{"v":0,"d":"0 Kč"}},null,"Sport",null,null,{"$f":"Zábava[[#This Row],[Předpokládané náklady]]-Zábava[[#This Row],[Skutečné náklady]]","v":{"v":0,"d":"0 Kč"}}]
[null,"Kabelová televize",null,null,{"$f":"Bydlení[[#This Row],[Předpokládané náklady]]-Bydlení[[#This Row],[Skutečné náklady]]","v":{"v":0,"d":"0 Kč"}},null,"Divadlo",null,null,{"$f":"Zábava[[#This Row],[Předpokládané náklady]]-Zábava[[#This Row],[Skutečné náklady]]","v":{"v":0,"d":"0 Kč"}}]
[null,"Poplatky za odpady",null,null,{"$f":"Bydlení[[#This Row],[Předpokládané náklady]]-Bydlení[[#This Row],[Skutečné náklady]]","v":{"v":0,"d":"0 Kč"}},null,"Jiné",null,null,{"$f":"Zábava[[#This Row],[Předpokládané náklady]]-Zábava[[#This Row],[Skutečné náklady]]","v":{"v":0,"d":"0 Kč"}}]
[null,"Údržba a opravy",null,null,{"$f":"Bydlení[[#This Row],[Předpokládané náklady]]-Bydlení[[#This Row],[Skutečné náklady]]","v":{"v":0,"d":"0 Kč"}},null,"Jiné",null,null,{"$f":"Zábava[[#This Row],[Předpokládané náklady]]-Zábava[[#This Row],[Skutečné náklady]]","v":{"v":0,"d":"0 Kč"}}]
[null,"Zásoby",null,null,{"$f":"Bydlení[[#This Row],[Předpokládané náklady]]-Bydlení[[#This Row],[Skutečné náklady]]","v":{"v":0,"d":"0 Kč"}},null,"Jiné",null,null,{"$f":"Zábava[[#This Row],[Předpokládané náklady]]-Zábava[[#This Row],[Skutečné náklady]]","v":{"v":0,"d":"0 Kč"}}]
[null,"Jiné",null,null,{"$f":"Bydlení[[#This Row],[Předpokládané náklady]]-Bydlení[[#This Row],[Skutečné náklady]]","v":{"v":0,"d":"0 Kč"}},null,"Celkem",{"$f":"SUBTOTAL(109,Zábava[Předpokládané náklady])","v":{"v":0,"d":"0 Kč"}},{"$f":"SUBTOTAL(109,Zábava[Skutečné náklady])","v":{"v":50,"d":"50 Kč"}},{"$f":"SUBTOTAL(109,Zábava[Rozdíl])","v":{"v":-50,"d":"-50 Kč"}}]
[null,"Celkem",{"$f":"SUBTOTAL(109,Bydlení[Předpokládané náklady])","v":{"v":1810,"d":"1,810 Kč"}},{"$f":"SUBTOTAL(109,Bydlení[Skutečné náklady])","v":{"v":1740,"d":"1,740 Kč"}},{"$f":"SUBTOTAL(109,Bydlení[Rozdíl])","v":{"v":70,"d":"70 Kč"}}]
[{"$nulls":6},"PŮJČKY","Předpokládané náklady","Skutečné náklady","Rozdíl"]
[null,"DOPRAVA","Předpokládané náklady","Skutečné náklady","Rozdíl",null,"Osobní",null,null,{"$f":"Půjčky[[#This Row],[Předpokládané náklady]]-Půjčky[[#This Row],[Skutečné náklady]]","v":{"v":0,"d":"0 Kč"}}]
[null,"Splátka automobilu",{"v":250,"d":"250 Kč"},{"v":250,"d":"250 Kč"},{"$f":"Doprava[[#This Row],[Předpokládané náklady]]-Doprava[[#This Row],[Skutečné náklady]]","v":{"v":0,"d":"0 Kč"}},null,"Studentské",null,null,{"$f":"Půjčky[[#This Row],[Předpokládané náklady]]-Půjčky[[#This Row],[Skutečné náklady]]","v":{"v":0,"d":"0 Kč"}}]
[null,"Autobusy/taxi",null,null,{"$f":"Doprava[[#This Row],[Předpokládané náklady]]-Doprava[[#This Row],[Skutečné náklady]]","v":{"v":0,"d":"0 Kč"}},null,"Kreditní karta",null,null,{"$f":"Půjčky[[#This Row],[Předpokládané náklady]]-Půjčky[[#This Row],[Skutečné náklady]]","v":{"v":0,"d":"0 Kč"}}]
[null,"Pojištění",null,null,{"$f":"Doprava[[#This Row],[Předpokládané náklady]]-Doprava[[#This Row],[Skutečné náklady]]","v":{"v":0,"d":"0 Kč"}},null,"Kreditní karta",null,null,{"$f":"Půjčky[[#This Row],[Předpokládané náklady]]-Půjčky[[#This Row],[Skutečné náklady]]","v":{"v":0,"d":"0 Kč"}}]
[null,"Poplatky",null,null,{"$f":"Doprava[[#This Row],[Předpokládané náklady]]-Doprava[[#This Row],[Skutečné náklady]]","v":{"v":0,"d":"0 Kč"}},null,"Kreditní karta",null,null,{"$f":"Půjčky[[#This Row],[Předpokládané náklady]]-Půjčky[[#This Row],[Skutečné náklady]]","v":{"v":0,"d":"0 Kč"}}]
[null,"Benzín",null,null,{"$f":"Doprava[[#This Row],[Předpokládané náklady]]-Doprava[[#This Row],[Skutečné náklady]]","v":{"v":0,"d":"0 Kč"}},null,"Jiné",null,null,{"$f":"Půjčky[[#This Row],[Předpokládané náklady]]-Půjčky[[#This Row],[Skutečné náklady]]","v":{"v":0,"d":"0 Kč"}}]
[null,"Údržba",null,null,{"$f":"Doprava[[#This Row],[Předpokládané náklady]]-Doprava[[#This Row],[Skutečné náklady]]","v":{"v":0,"d":"0 Kč"}},null,"Celkem",{"$f":"SUBTOTAL(109,Půjčky[Předpokládané náklady])","v":{"v":0,"d":"0 Kč"}},{"$f":"SUBTOTAL(109,Půjčky[Skutečné náklady])","v":{"v":0,"d":"0 Kč"}},{"$f":"SUBTOTAL(109,Půjčky[Rozdíl])","v":{"v":0,"d":"0 Kč"}}]
[null,"Jiné",null,null,{"$f":"Doprava[[#This Row],[Předpokládané náklady]]-Doprava[[#This Row],[Skutečné náklady]]","v":{"v":0,"d":"0 Kč"}}]
[null,"Celkem",{"$f":"SUBTOTAL(109,Doprava[Předpokládané náklady])","v":{"v":250,"d":"250 Kč"}},{"$f":"SUBTOTAL(109,Doprava[Skutečné náklady])","v":{"v":250,"d":"250 Kč"}},{"$f":"SUBTOTAL(109,Doprava[Rozdíl])","v":{"v":0,"d":"0 Kč"}},null,"DANĚ","Předpokládané náklady","Skutečné náklady","Rozdíl"]
[{"$nulls":6},"Daně z příjmů",null,null,{"$f":"Daně[[#This Row],[Předpokládané náklady]]-Daně[[#This Row],[Skutečné náklady]]","v":{"v":0,"d":"0 Kč"}}]
[null,"POJIŠTĚNÍ","Předpokládané náklady","Skutečné náklady","Rozdíl",null,"Daně z nemovitostí",null,null,{"$f":"Daně[[#This Row],[Předpokládané náklady]]-Daně[[#This Row],[Skutečné náklady]]","v":{"v":0,"d":"0 Kč"}}]
[null,"Domácnost",null,null,{"$f":"Pojištění[[#This Row],[Předpokládané náklady]]-Pojištění[[#This Row],[Skutečné náklady]]","v":{"v":0,"d":"0 Kč"}},null,"Silniční daň",null,null,{"$f":"Daně[[#This Row],[Předpokládané náklady]]-Daně[[#This Row],[Skutečné náklady]]","v":{"v":0,"d":"0 Kč"}}]
[null,"Zdravotní",null,null,{"$f":"Pojištění[[#This Row],[Předpokládané náklady]]-Pojištění[[#This Row],[Skutečné náklady]]","v":{"v":0,"d":"0 Kč"}},null,"Jiné",null,null,{"$f":"Daně[[#This Row],[Předpokládané náklady]]-Daně[[#This Row],[Skutečné náklady]]","v":{"v":0,"d":"0 Kč"}}]
[null,"Životní",null,null,{"$f":"Pojištění[[#This Row],[Předpokládané náklady]]-Pojištění[[#This Row],[Skutečné náklady]]","v":{"v":0,"d":"0 Kč"}},null,"Celkem",{"$f":"SUBTOTAL(109,Daně[Předpokládané náklady])","v":{"v":0,"d":"0 Kč"}},{"$f":"SUBTOTAL(109,Daně[Skutečné náklady])","v":{"v":0,"d":"0 Kč"}},{"$f":"SUBTOTAL(109,Daně[Rozdíl])","v":{"v":0,"d":"0 Kč"}}]
[null,"Jiné",null,null,{"$f":"Pojištění[[#This Row],[Předpokládané náklady]]-Pojištění[[#This Row],[Skutečné náklady]]","v":{"v":0,"d":"0 Kč"}}]
[null,"Celkem",{"$f":"SUBTOTAL(109,Pojištění[Předpokládané náklady])","v":{"v":0,"d":"0 Kč"}},{"$f":"SUBTOTAL(109,Pojištění[Skutečné náklady])","v":{"v":0,"d":"0 Kč"}},{"$f":"SUBTOTAL(109,Pojištění[Rozdíl])","v":{"v":0,"d":"0 Kč"}},null,"SPOŘENÍ NEBO INVESTICE","Předpokládané náklady","Skutečné náklady","Rozdíl"]
[{"$nulls":6},"Penzijní pojištění",null,null,{"$f":"SpořeníNeboInvestice[[#This Row],[Předpokládané náklady]]-SpořeníNeboInvestice[[#This Row],[Skutečné náklady]]","v":{"v":0,"d":"0 Kč"}}]
[null,"JÍDLO","Předpokládané náklady","Skutečné náklady","Rozdíl",null,"Investiční účet",null,null,{"$f":"SpořeníNeboInvestice[[#This Row],[Předpokládané náklady]]-SpořeníNeboInvestice[[#This Row],[Skutečné náklady]]","v":{"v":0,"d":"0 Kč"}}]
[null,"Nákupy potravin",null,null,{"$f":"Jídlo[[#This Row],[Předpokládané náklady]]-Jídlo[[#This Row],[Skutečné náklady]]","v":{"v":0,"d":"0 Kč"}},null,"Jiné",null,null,{"$f":"SpořeníNeboInvestice[[#This Row],[Předpokládané náklady]]-SpořeníNeboInvestice[[#This Row],[Skutečné náklady]]","v":{"v":0,"d":"0 Kč"}}]
[null,"Večeře v restauraci",null,null,{"$f":"Jídlo[[#This Row],[Předpokládané náklady]]-Jídlo[[#This Row],[Skutečné náklady]]","v":{"v":0,"d":"0 Kč"}},null,"Celkem",{"$f":"SUBTOTAL(109,SpořeníNeboInvestice[Předpokládané náklady])","v":{"v":0,"d":"0 Kč"}},{"$f":"SUBTOTAL(109,SpořeníNeboInvestice[Skutečné náklady])","v":{"v":0,"d":"0 Kč"}},{"$f":"SUBTOTAL(109,SpořeníNeboInvestice[Rozdíl])","v":{"v":0,"d":"0 Kč"}}]
[null,"Jiné",null,null,{"$f":"Jídlo[[#This Row],[Předpokládané náklady]]-Jídlo[[#This Row],[Skutečné náklady]]","v":{"v":0,"d":"0 Kč"}}]
[null,"Celkem",{"$f":"SUBTOTAL(109,Jídlo[Předpokládané náklady])","v":{"v":0,"d":"0 Kč"}},{"$f":"SUBTOTAL(109,Jídlo[Skutečné náklady])","v":{"v":0,"d":"0 Kč"}},{"$f":"SUBTOTAL(109,Jídlo[Rozdíl])","v":{"v":0,"d":"0 Kč"}},null,"DARY A PŘÍSPĚVKY","Předpokládané náklady","Skutečné náklady","Rozdíl"]
[{"$nulls":6},"Charita 1",null,null,{"$f":"DaryAPříspěvky[[#This Row],[Předpokládané náklady]]-DaryAPříspěvky[[#This Row],[Skutečné náklady]]","v":{"v":0,"d":"0 Kč"}}]
[null,"DOMÁCÍ ZVÍŘATA","Předpokládané náklady","Skutečné náklady","Rozdíl",null,"Charita 2",null,null,{"$f":"DaryAPříspěvky[[#This Row],[Předpokládané náklady]]-DaryAPříspěvky[[#This Row],[Skutečné náklady]]","v":{"v":0,"d":"0 Kč"}}]
[null,"Jídlo",null,null,{"$f":"DomácíZvířata[[#This Row],[Předpokládané náklady]]-DomácíZvířata[[#This Row],[Skutečné náklady]]","v":{"v":0,"d":"0 Kč"}},null,"Charita 3",null,null,{"$f":"DaryAPříspěvky[[#This Row],[Předpokládané náklady]]-DaryAPříspěvky[[#This Row],[Skutečné náklady]]","v":{"v":0,"d":"0 Kč"}}]
[null,"Zdravotní péče",null,null,{"$f":"DomácíZvířata[[#This Row],[Předpokládané náklady]]-DomácíZvířata[[#This Row],[Skutečné náklady]]","v":{"v":0,"d":"0 Kč"}},null,"Celkem",{"$f":"SUBTOTAL(109,DaryAPříspěvky[Předpokládané náklady])","v":{"v":0,"d":"0 Kč"}},{"$f":"SUBTOTAL(109,DaryAPříspěvky[Skutečné náklady])","v":{"v":0,"d":"0 Kč"}},{"$f":"SUBTOTAL(109,DaryAPříspěvky[Rozdíl])","v":{"v":0,"d":"0 Kč"}}]
[null,"Péče o vzhled",null,null,{"$f":"DomácíZvířata[[#This Row],[Předpokládané náklady]]-DomácíZvířata[[#This Row],[Skutečné náklady]]","v":{"v":0,"d":"0 Kč"}}]
[null,"Hračky",null,null,{"$f":"DomácíZvířata[[#This Row],[Předpokládané náklady]]-DomácíZvířata[[#This Row],[Skutečné náklady]]","v":{"v":0,"d":"0 Kč"}},null,"PRÁVNÍ","Předpokládané náklady","Skutečné náklady","Rozdíl"]
[null,"Jiné",null,null,{"$f":"DomácíZvířata[[#This Row],[Předpokládané náklady]]-DomácíZvířata[[#This Row],[Skutečné náklady]]","v":{"v":0,"d":"0 Kč"}},null,"Advokát",null,null,{"$f":"Právní[[#This Row],[Předpokládané náklady]]-Právní[[#This Row],[Skutečné náklady]]","v":{"v":0,"d":"0 Kč"}}]
[null,"Celkem",{"$f":"SUBTOTAL(109,DomácíZvířata[Předpokládané náklady])","v":{"v":0,"d":"0 Kč"}},{"$f":"SUBTOTAL(109,DomácíZvířata[Skutečné náklady])","v":{"v":0,"d":"0 Kč"}},{"$f":"SUBTOTAL(109,DomácíZvířata[Rozdíl])","v":{"v":0,"d":"0 Kč"}},null,"Výživné",null,null,{"$f":"Právní[[#This Row],[Předpokládané náklady]]-Právní[[#This Row],[Skutečné náklady]]","v":{"v":0,"d":"0 Kč"}}]
[{"$nulls":6},"Platby za držbu nebo odhadce",null,null,{"$f":"Právní[[#This Row],[Předpokládané náklady]]-Právní[[#This Row],[Skutečné náklady]]","v":{"v":0,"d":"0 Kč"}}]
[null,"OSOBNÍ PÉČE","Předpokládané náklady","Skutečné náklady","Rozdíl",null,"Jiné",null,null,{"$f":"Právní[[#This Row],[Předpokládané náklady]]-Právní[[#This Row],[Skutečné náklady]]","v":{"v":0,"d":"0 Kč"}}]
[null,"Zdravotní péče",null,null,{"$f":"OsobníPéče[[#This Row],[Předpokládané náklady]]-OsobníPéče[[#This Row],[Skutečné náklady]]","v":{"v":0,"d":"0 Kč"}},null,"Celkem",{"$f":"SUBTOTAL(109,Právní[Předpokládané náklady])","v":{"v":0,"d":"0 Kč"}},{"$f":"SUBTOTAL(109,Právní[Skutečné náklady])","v":{"v":0,"d":"0 Kč"}},{"$f":"SUBTOTAL(109,Právní[Rozdíl])","v":{"v":0,"d":"0 Kč"}}]
[null,"Vlasy a nehty",null,null,{"$f":"OsobníPéče[[#This Row],[Předpokládané náklady]]-OsobníPéče[[#This Row],[Skutečné náklady]]","v":{"v":0,"d":"0 Kč"}}]
[null,"Oblečení",null,null,{"$f":"OsobníPéče[[#This Row],[Předpokládané náklady]]-OsobníPéče[[#This Row],[Skutečné náklady]]","v":{"v":0,"d":"0 Kč"}}]
[null,"Čistírna",null,null,{"$f":"OsobníPéče[[#This Row],[Předpokládané náklady]]-OsobníPéče[[#This Row],[Skutečné náklady]]","v":{"v":0,"d":"0 Kč"}}]
[null,"Fitness",null,null,{"$f":"OsobníPéče[[#This Row],[Předpokládané náklady]]-OsobníPéče[[#This Row],[Skutečné náklady]]","v":{"v":0,"d":"0 Kč"}}]
[null,"Členské příspěvky a poplatky",null,null,{"$f":"OsobníPéče[[#This Row],[Předpokládané náklady]]-OsobníPéče[[#This Row],[Skutečné náklady]]","v":{"v":0,"d":"0 Kč"}}]
[null,"Jiné",null,null,{"$f":"OsobníPéče[[#This Row],[Předpokládané náklady]]-OsobníPéče[[#This Row],[Skutečné náklady]]","v":{"v":0,"d":"0 Kč"}}]
[null,"Celkem",{"$f":"SUBTOTAL(109,OsobníPéče[Předpokládané náklady])","v":{"v":0,"d":"0 Kč"}},{"$f":"SUBTOTAL(109,OsobníPéče[Skutečné náklady])","v":{"v":0,"d":"0 Kč"}},{"$f":"SUBTOTAL(109,OsobníPéče[Rozdíl])","v":{"v":0,"d":"0 Kč"}}]